[Event "Early-Titled-Tuesday-Blitz-April-02-2024"]
[Site "Chess.com"]
[Date "2024.04.02"]
[Round "4"]
[White "sonicdravise"]
[Black "MatthewG-p4p"]
[Result "1-0"]
[WhiteElo "2622"]
[BlackElo "2872"]
[TimeControl "180+1"]
[EndTime "8:40:33 PDT"]
[Termination "sonicdravise won by resignation"]

1. Nf3 {[%clk 0:03:00.9]} 1... c5 {[%clk 0:02:54.6]} 2. c4 {[%clk 0:02:57.6]}
2... g6 {[%clk 0:02:54.8]} 3. Nc3 {[%clk 0:02:56.3]} 3... Bg7 {[%clk 0:02:53.4]}
4. e3 {[%clk 0:02:52.2]} 4... Nf6 {[%clk 0:02:52.9]} 5. b3 {[%clk 0:02:50.4]}
5... O-O {[%clk 0:02:45.9]} 6. Bb2 {[%clk 0:02:48.2]} 6... Nc6 {[%clk
0:02:44.9]} 7. Be2 {[%clk 0:02:46.2]} 7... b6 {[%clk 0:02:42.8]} 8. O-O {[%clk
0:02:46.4]} 8... Bb7 {[%clk 0:02:43.5]} 9. a3 {[%clk 0:02:45.7]} 9... e6 {[%clk
0:02:36.5]} 10. Rc1 {[%clk 0:02:02.9]} 10... Qe7 {[%clk 0:02:34.4]} 11. d4
{[%clk 0:01:58.9]} 11... cxd4 {[%clk 0:02:34.2]} 12. exd4 {[%clk 0:01:58.1]}
12... d5 {[%clk 0:02:33.8]} 13. cxd5 {[%clk 0:01:56.4]} 13... exd5 {[%clk
0:02:27.6]} 14. Re1 {[%clk 0:01:56.2]} 14... Qd8 {[%clk 0:02:22.8]} 15. Ne5
{[%clk 0:01:34.7]} 15... Ne7 {[%clk 0:02:02.8]} 16. Bf3 {[%clk 0:01:30.6]} 16...
Nf5 {[%clk 0:02:02.3]} 17. Ne2 {[%clk 0:01:26.7]} 17... Rc8 {[%clk 0:02:01]} 18.
Ng3 {[%clk 0:01:20.1]} 18... Nh4 {[%clk 0:01:54.6]} 19. Be2 {[%clk 0:01:16.6]}
19... Bh6 {[%clk 0:01:39.9]} 20. Rxc8 {[%clk 0:01:15.6]} 20... Qxc8 {[%clk
0:01:37.6]} 21. Bc1 {[%clk 0:01:15.4]} 21... Bxc1 {[%clk 0:01:06.1]} 22. Qxc1
{[%clk 0:01:16.3]} 22... Nf5 {[%clk 0:00:25.3]} 23. Qxc8 {[%clk 0:01:02.6]}
23... Bxc8 {[%clk 0:00:26.2]} 24. Bd3 {[%clk 0:00:54.7]} 24... Nxd4 {[%clk
0:00:25.9]} 25. Rc1 {[%clk 0:00:41.7]} 25... Nxb3 {[%clk 0:00:24.3]} 26. Rc7
{[%clk 0:00:42.4]} 26... Nc5 {[%clk 0:00:16.9]} 27. Rxa7 {[%clk 0:00:36.4]}
27... Re8 {[%clk 0:00:17.2]} 28. f4 {[%clk 0:00:36]} 28... Ng4 {[%clk
0:00:17.1]} 29. Bb5 {[%clk 0:00:34.9]} 29... Rf8 {[%clk 0:00:13.8]} 30. Nc6
{[%clk 0:00:25.4]} 30... Be6 {[%clk 0:00:13.4]} 31. Nd4 {[%clk 0:00:23.9]} 31...
Rc8 {[%clk 0:00:11.6]} 32. f5 {[%clk 0:00:22]} 32... gxf5 {[%clk 0:00:08.4]} 33.
Ngxf5 {[%clk 0:00:22.4]} 33... Rd8 {[%clk 0:00:05.2]} 34. Ne7+ {[%clk
0:00:19.7]} 34... Kf8 {[%clk 0:00:05.2]} 35. Nec6 {[%clk 0:00:20]} 35... Rc8
{[%clk 0:00:05.9]} 36. Nxe6+ {[%clk 0:00:19]} 36... Nxe6 {[%clk 0:00:05.8]} 37.
Rd7 {[%clk 0:00:17.9]} 37... Nf6 {[%clk 0:00:05]} 38. Rb7 {[%clk 0:00:18]} 38...
Ra8 {[%clk 0:00:05.3]} 39. a4 {[%clk 0:00:17.6]} 39... Ne4 {[%clk 0:00:04.7]}
40. Rxb6 {[%clk 0:00:16.7]} 40... N4c5 {[%clk 0:00:05.3]} 41. a5 {[%clk
0:00:16.4]} 41... d4 {[%clk 0:00:06]} 42. a6 {[%clk 0:00:14.8]} 42... d3 {[%clk
0:00:06.6]} 43. a7 {[%clk 0:00:14.1]} 43... d2 {[%clk 0:00:03.3]} 44. Rb8+
{[%clk 0:00:13.7]} 44... Kg7 {[%clk 0:00:04]} 45. Be2 {[%clk 0:00:13.7]} 45...
Nc7 {[%clk 0:00:04.5]} 46. Rxa8 {[%clk 0:00:11.9]} 46... Nxa8 {[%clk 0:00:05.4]}
47. Kf2 {[%clk 0:00:12.1]} 47... Nb3 {[%clk 0:00:03.7]} 48. Ke3 {[%clk
0:00:10.8]} 48... Kf6 {[%clk 0:00:04.4]} 49. Bd1 {[%clk 0:00:11.3]} 49... Nc5
{[%clk 0:00:04.3]} 50. Kxd2 {[%clk 0:00:11.1]} 50... Ke6 {[%clk 0:00:05]} 51.
Bf3 {[%clk 0:00:11.3]} 51... Na6 {[%clk 0:00:03.3]} 52. Nd4+ {[%clk 0:00:10.8]}
52... Ke5 {[%clk 0:00:03.2]} 53. Bxa8 {[%clk 0:00:10.1]} 53... Kxd4 {[%clk
0:00:03.8]} 54. Bb7 {[%clk 0:00:10.7]} 54... Nc7 {[%clk 0:00:04.5]} 55. a8=Q
{[%clk 0:00:10.4]} 55... Nxa8 {[%clk 0:00:05.2]} 56. Bxa8 {[%clk 0:00:11.3]}
56... Ke5 {[%clk 0:00:05.9]} 57. Ke3 {[%clk 0:00:11.2]} 57... f5 {[%clk
0:00:06]} 58. Bf3 {[%clk 0:00:10.7]} 58... f4+ {[%clk 0:00:06.2]} 59. Kd3 {[%clk
0:00:11.2]} 59... h6 {[%clk 0:00:06.7]} 60. Kc4 {[%clk 0:00:11.5]} 60... Kf5
{[%clk 0:00:06.4]} 61. Kd4 {[%clk 0:00:12]} 61... Kf6 {[%clk 0:00:07]} 62. Ke4
{[%clk 0:00:12.5]} 62... Kg5 {[%clk 0:00:07.9]} 63. Ke5 {[%clk 0:00:12.6]} 63...
h5 {[%clk 0:00:08.8]} 64. Ke4 {[%clk 0:00:12.4]} 64... Kh4 {[%clk 0:00:09.4]}
65. Ke5 {[%clk 0:00:10.5]} 65... Kg5 {[%clk 0:00:09.6]} 66. Bxh5 {[%clk
0:00:10]} 66... f3 {[%clk 0:00:09.4]} 67. Bxf3 {[%clk 0:00:09.8]} 67... Kh4
{[%clk 0:00:10.3]} 68. g4 {[%clk 0:00:09]} 68... Kg5 {[%clk 0:00:09.9]} 69. Kd4
{[%clk 0:00:09.6]} 69... Kh4 {[%clk 0:00:10.8]} 70. Ke3 {[%clk 0:00:09.7]} 70...
Kg5 {[%clk 0:00:11.7]} 71. Kf2 {[%clk 0:00:10.1]} 71... Kh4 {[%clk 0:00:12.6]}
72. Kg2 {[%clk 0:00:10.3]} 72... Kg5 {[%clk 0:00:13.5]} 73. Kg3 {[%clk
0:00:10.9]} 73... Kg6 {[%clk 0:00:14.4]} 74. h4 {[%clk 0:00:11.6]} 74... Kh6
{[%clk 0:00:15.3]} 75. g5+ {[%clk 0:00:11.9]} 75... Kg7 {[%clk 0:00:16.2]} 76.
h5 {[%clk 0:00:11.9]} 76... Kh8 {[%clk 0:00:17.1]} 77. g6 {[%clk 0:00:11.8]}
77... Kg8 {[%clk 0:00:18]} 78. h6 {[%clk 0:00:11.8]} 78... Kf8 {[%clk
0:00:18.9]} 79. g7+ {[%clk 0:00:11.8]} 79... Kg8 {[%clk 0:00:19.8]} 80. Bd5+
{[%clk 0:00:11.9]} 1-0

[Event "Early-Titled-Tuesday-Blitz-April-02-2024"]
[Site "Chess.com"]
[Date "2024.04.02"]
[Round "4"]
[White "ansko1999"]
[Black "fmcabralis"]
[Result "1-0"]
[WhiteElo "2640"]
[BlackElo "2403"]
[TimeControl "180+1"]
[EndTime "8:40:39 PDT"]
[Termination "ansko1999 won by resignation"]

1. c4 {[%clk 0:03:00.4]} 1... Nf6 {[%clk 0:02:59.3]} 2. Nf3 {[%clk 0:03:00.4]}
2... c6 {[%clk 0:02:57.5]} 3. e3 {[%clk 0:02:58.7]} 3... d5 {[%clk 0:02:58]} 4.
Nc3 {[%clk 0:02:58.9]} 4... e6 {[%clk 0:02:57.8]} 5. d4 {[%clk 0:02:57.9]} 5...
Nbd7 {[%clk 0:02:57.4]} 6. b3 {[%clk 0:02:51.6]} 6... Be7 {[%clk 0:02:50.9]} 7.
Bd3 {[%clk 0:02:48.7]} 7... O-O {[%clk 0:02:47.7]} 8. O-O {[%clk 0:02:49.3]}
8... Re8 {[%clk 0:02:44.5]} 9. Qe2 {[%clk 0:02:46.3]} 9... Qc7 {[%clk 0:02:43]}
10. e4 {[%clk 0:02:45.2]} 10... dxe4 {[%clk 0:02:42]} 11. Nxe4 {[%clk
0:02:46.1]} 11... Nxe4 {[%clk 0:02:41.1]} 12. Qxe4 {[%clk 0:02:44.9]} 12... Nf6
{[%clk 0:02:41.5]} 13. Qh4 {[%clk 0:02:44.9]} 13... g6 {[%clk 0:02:20.9]} 14.
Bf4 {[%clk 0:02:26.1]} 14... Qb6 {[%clk 0:02:17.4]} 15. Bg5 {[%clk 0:02:24.2]}
15... Qd8 {[%clk 0:02:09]} 16. Rad1 {[%clk 0:02:11.1]} 16... Nd7 {[%clk
0:01:56.1]} 17. Qh6 {[%clk 0:02:05.1]} 17... Bf8 {[%clk 0:01:44.9]} 18. Qh4
{[%clk 0:01:45.5]} 18... f6 {[%clk 0:01:45.2]} 19. Bh6 {[%clk 0:01:39]} 19... b6
{[%clk 0:01:27.4]} 20. Be4 {[%clk 0:01:35.1]} 20... Bb7 {[%clk 0:01:27]} 21.
Bxf8 {[%clk 0:01:30.8]} 21... Nxf8 {[%clk 0:01:26.1]} 22. Rfe1 {[%clk
0:01:27.4]} 22... f5 {[%clk 0:01:00.8]} 23. Qxd8 {[%clk 0:01:24.5]} 23... Raxd8
{[%clk 0:01:01.3]} 24. Bc2 {[%clk 0:01:24.8]} 24... c5 {[%clk 0:00:59.7]} 25.
dxc5 {[%clk 0:01:14.9]} 25... Bxf3 {[%clk 0:00:58.3]} 26. gxf3 {[%clk
0:01:09.8]} 26... bxc5 {[%clk 0:00:58.3]} 27. f4 {[%clk 0:01:00.2]} 27... Kf7
{[%clk 0:00:58.2]} 28. Kf1 {[%clk 0:00:52]} 28... Ke7 {[%clk 0:00:55.7]} 29. Ke2
{[%clk 0:00:46.6]} 29... Rxd1 {[%clk 0:00:53.6]} 30. Rxd1 {[%clk 0:00:46.8]}
30... Rd8 {[%clk 0:00:54.4]} 31. Rb1 {[%clk 0:00:47.1]} 31... Rd4 {[%clk
0:00:53.5]} 32. Ke3 {[%clk 0:00:46.7]} 32... Nd7 {[%clk 0:00:51.3]} 33. Bd1
{[%clk 0:00:38.7]} 33... e5 {[%clk 0:00:49.8]} 34. fxe5 {[%clk 0:00:37.1]} 34...
Nxe5 {[%clk 0:00:49.6]} 35. Ke2 {[%clk 0:00:24.4]} 35... a5 {[%clk 0:00:48.6]}
36. Bc2 {[%clk 0:00:23.1]} 36... Nc6 {[%clk 0:00:42.1]} 37. a3 {[%clk
0:00:22.3]} 37... Rh4 {[%clk 0:00:41]} 38. Rh1 {[%clk 0:00:17.5]} 38... Nd4+
{[%clk 0:00:40]} 39. Kd2 {[%clk 0:00:18.1]} 39... Rxh2 {[%clk 0:00:30.1]} 40.
Rxh2 {[%clk 0:00:15.6]} 40... Nf3+ {[%clk 0:00:30.5]} 41. Ke3 {[%clk 0:00:12]}
41... Nxh2 {[%clk 0:00:31.4]} 42. Kf4 {[%clk 0:00:08.4]} 42... Kf6 {[%clk
0:00:29.5]} 43. Bd3 {[%clk 0:00:05.1]} 43... Ng4 {[%clk 0:00:24.3]} 44. f3
{[%clk 0:00:04.6]} 44... Ne5 {[%clk 0:00:20.5]} 45. Bf1 {[%clk 0:00:04.5]} 45...
Nc6 {[%clk 0:00:19.1]} 46. Ke3 {[%clk 0:00:04.4]} 46... Nd4 {[%clk 0:00:17.3]}
47. b4 {[%clk 0:00:04.7]} 47... axb4 {[%clk 0:00:17.7]} 48. a4 {[%clk
0:00:04.3]} 48... b3 {[%clk 0:00:14.3]} 49. Kd3 {[%clk 0:00:04.4]} 49... Ke5
{[%clk 0:00:11.2]} 50. Kc3 {[%clk 0:00:04.3]} 50... Kf4 {[%clk 0:00:09.6]} 51.
a5 {[%clk 0:00:04.6]} 51... Kxf3 {[%clk 0:00:08.4]} 52. a6 {[%clk 0:00:05]}
52... Nc6 {[%clk 0:00:08.9]} 53. Kxb3 {[%clk 0:00:04.1]} 53... Ke3 {[%clk
0:00:08.3]} 54. Bg2 {[%clk 0:00:03.8]} 54... Na7 {[%clk 0:00:08.4]} 55. Ka4
{[%clk 0:00:04.2]} 55... Kd4 {[%clk 0:00:08.5]} 56. Bd5 {[%clk 0:00:03.9]} 56...
f4 {[%clk 0:00:08.6]} 57. Ka5 {[%clk 0:00:04.4]} 57... g5 {[%clk 0:00:07.9]} 58.
Kb6 {[%clk 0:00:04.8]} 58... Nc8+ {[%clk 0:00:08]} 59. Kb7 {[%clk 0:00:05]}
59... Nd6+ {[%clk 0:00:07.5]} 60. Kc7 {[%clk 0:00:05.7]} 60... Nxc4 {[%clk
0:00:07.1]} 61. Bxc4 {[%clk 0:00:05.6]} 61... Kxc4 {[%clk 0:00:08]} 62. a7
{[%clk 0:00:06.3]} 62... f3 {[%clk 0:00:04]} 63. a8=Q {[%clk 0:00:07.2]} 63...
g4 {[%clk 0:00:04.6]} 64. Qe4+ {[%clk 0:00:07.2]} 64... Kb3 {[%clk 0:00:05]} 65.
Qxg4 {[%clk 0:00:08.1]} 65... c4 {[%clk 0:00:05.4]} 66. Qxf3+ {[%clk 0:00:08.5]}
66... c3 {[%clk 0:00:06.1]} 67. Kb6 {[%clk 0:00:07]} 67... Kb2 {[%clk
0:00:06.1]} 68. Qf6 {[%clk 0:00:06.6]} 68... Kb3 {[%clk 0:00:04.8]} 69. Qe6+
{[%clk 0:00:07]} 69... Kb2 {[%clk 0:00:04.9]} 70. Qe5 {[%clk 0:00:07.4]} 70...
Kc2 {[%clk 0:00:03.8]} 71. Kc5 {[%clk 0:00:07.4]} 71... Kd2 {[%clk 0:00:04.4]}
72. Kd4 {[%clk 0:00:07.2]} 72... c2 {[%clk 0:00:05]} 73. Qe3+ {[%clk 0:00:07.6]}
73... Kd1 {[%clk 0:00:05.6]} 74. Kd3 {[%clk 0:00:07.4]} 74... c1=N+ {[%clk
0:00:04]} 75. Kc3 {[%clk 0:00:07]} 75... Ne2+ {[%clk 0:00:04.1]} 76. Kc4 {[%clk
0:00:05.8]} 76... Nc1 {[%clk 0:00:02.9]} 77. Qf3+ {[%clk 0:00:04.1]} 77... Ke1
{[%clk 0:00:02.8]} 78. Qh1+ {[%clk 0:00:03.2]} 78... Kd2 {[%clk 0:00:03.1]} 79.
Qh6+ {[%clk 0:00:03.8]} 79... Ke1 {[%clk 0:00:03.1]} 80. Qxc1+ {[%clk
0:00:03.8]} 1-0

[Event "Early-Titled-Tuesday-Blitz-April-02-2024"]
[Site "Chess.com"]
[Date "2024.04.02"]
[Round "4"]
[White "albi1999"]
[Black "PapaieDudu"]
[Result "1-0"]
[WhiteElo "2609"]
[BlackElo "2395"]
[TimeControl "180+1"]
[EndTime "8:40:39 PDT"]
[Termination "albi1999 won by resignation"]

1. Nf3 {[%clk 0:02:59.9]} 1... d5 {[%clk 0:03:00.1]} 2. e3 {[%clk 0:02:59.6]}
2... Nf6 {[%clk 0:03:00.5]} 3. c4 {[%clk 0:03:00.1]} 3... e6 {[%clk 0:03:00.7]}
4. Nc3 {[%clk 0:02:59.9]} 4... a6 {[%clk 0:03:00.3]} 5. b3 {[%clk 0:02:59.1]}
5... Bb4 {[%clk 0:02:57.9]} 6. Bb2 {[%clk 0:02:58.8]} 6... O-O {[%clk
0:02:55.6]} 7. a3 {[%clk 0:02:58.8]} 7... Be7 {[%clk 0:02:52]} 8. d4 {[%clk
0:02:57.4]} 8... dxc4 {[%clk 0:02:50.7]} 9. bxc4 {[%clk 0:02:53.7]} 9... c5
{[%clk 0:02:47.8]} 10. Be2 {[%clk 0:02:31.6]} 10... cxd4 {[%clk 0:02:35.2]} 11.
exd4 {[%clk 0:02:32.5]} 11... Nc6 {[%clk 0:02:33]} 12. O-O {[%clk 0:02:31.9]}
12... Bd6 {[%clk 0:02:30.5]} 13. Qd3 {[%clk 0:02:14.5]} 13... Bf4 {[%clk
0:02:28.5]} 14. Rad1 {[%clk 0:02:12]} 14... Bh6 {[%clk 0:02:17.5]} 15. d5 {[%clk
0:02:03.2]} 15... exd5 {[%clk 0:01:59.8]} 16. Nxd5 {[%clk 0:02:04.1]} 16... Nxd5
{[%clk 0:01:51.7]} 17. cxd5 {[%clk 0:02:05]} 17... Nb8 {[%clk 0:01:45.2]} 18. d6
{[%clk 0:01:55.3]} 18... Bd7 {[%clk 0:01:39.9]} 19. Ne5 {[%clk 0:01:52.8]} 19...
Nc6 {[%clk 0:01:34.8]} 20. Nxd7 {[%clk 0:01:41.5]} 20... Qxd7 {[%clk 0:01:35.1]}
21. Bf3 {[%clk 0:01:41.8]} 21... Rfe8 {[%clk 0:01:32.8]} 22. Qb3 {[%clk
0:01:38]} 22... Re6 {[%clk 0:01:20]} 23. Bg4 {[%clk 0:01:31.1]} 23... Rae8
{[%clk 0:01:13.3]} 24. Bxe6 {[%clk 0:01:29.9]} 24... Rxe6 {[%clk 0:01:13.5]} 25.
Rfe1 {[%clk 0:01:29.2]} 25... g6 {[%clk 0:00:57.2]} 26. Rxe6 {[%clk 0:01:27]}
26... fxe6 {[%clk 0:00:57.9]} 27. Re1 {[%clk 0:01:21.6]} 27... Kf7 {[%clk
0:00:57.9]} 28. Qf3+ {[%clk 0:01:20.6]} 28... Ke8 {[%clk 0:00:55.2]} 29. Qf6
{[%clk 0:01:20.2]} 29... Nd8 {[%clk 0:00:54.6]} 30. Qh8+ {[%clk 0:01:09.1]}
30... Bf8 {[%clk 0:00:53.4]} 31. Bf6 {[%clk 0:01:04.4]} 31... Nf7 {[%clk
0:00:50.3]} 32. Qxh7 {[%clk 0:01:03.4]} 32... Qxd6 {[%clk 0:00:50.8]} 33. Qxg6
{[%clk 0:01:02]} 33... Qd5 {[%clk 0:00:40.3]} 34. Bh4 {[%clk 0:00:56.3]} 34...
e5 {[%clk 0:00:39]} 35. h3 {[%clk 0:00:49.9]} 35... Bxa3 {[%clk 0:00:35.9]} 36.
Bg3 {[%clk 0:00:46.5]} 36... Bd6 {[%clk 0:00:35]} 37. Qg8+ {[%clk 0:00:36.6]}
37... Kd7 {[%clk 0:00:29.1]} 38. Qg4+ {[%clk 0:00:34.8]} 38... Kc7 {[%clk
0:00:26.1]} 39. Rd1 {[%clk 0:00:34.2]} 39... Qb3 {[%clk 0:00:21.3]} 40. Rc1+
{[%clk 0:00:30.3]} 40... Kb8 {[%clk 0:00:21.9]} 41. Qc8+ {[%clk 0:00:29.5]}
41... Ka7 {[%clk 0:00:22.5]} 42. f3 {[%clk 0:00:25.5]} 42... a5 {[%clk
0:00:16.6]} 43. Bf2+ {[%clk 0:00:24.6]} 43... Ka6 {[%clk 0:00:16.1]} 44. Qa8+
{[%clk 0:00:24.2]} 44... Kb5 {[%clk 0:00:16.1]} 45. Qxb7+ {[%clk 0:00:22.8]}
45... Ka4 {[%clk 0:00:16.4]} 46. Ra1+ {[%clk 0:00:19.1]} 46... Ba3 {[%clk
0:00:13.8]} 47. Qc6+ {[%clk 0:00:17.7]} 47... Qb5 {[%clk 0:00:13.8]} 48. Qc2+
{[%clk 0:00:17.3]} 48... Qb3 {[%clk 0:00:12.2]} 49. Qe4+ {[%clk 0:00:15.9]}
49... Kb5 {[%clk 0:00:11.8]} 50. Rb1 {[%clk 0:00:15.2]} 50... Bb2 {[%clk
0:00:11.9]} 51. Qe2+ {[%clk 0:00:14.2]} 51... Kc6 {[%clk 0:00:11.1]} 52. Rxb2
{[%clk 0:00:14.3]} 52... Qa3 {[%clk 0:00:11.2]} 53. Rc2+ {[%clk 0:00:14.5]}
53... Kd7 {[%clk 0:00:11.9]} 54. Qd2+ {[%clk 0:00:14.5]} 54... Ke6 {[%clk
0:00:12]} 55. Qe2 {[%clk 0:00:11.5]} 55... a4 {[%clk 0:00:11.6]} 56. Qc4+ {[%clk
0:00:11.5]} 56... Kf6 {[%clk 0:00:11.3]} 57. Ra2 {[%clk 0:00:11.9]} 57... Qd6
{[%clk 0:00:08.7]} 58. Rxa4 {[%clk 0:00:12.4]} 58... Kg7 {[%clk 0:00:08.3]} 59.
Ra6 {[%clk 0:00:12.5]} 59... Qd1+ {[%clk 0:00:08.1]} 60. Kh2 {[%clk 0:00:12.8]}
60... Qe2 {[%clk 0:00:06.9]} 61. Qg4+ {[%clk 0:00:13.1]} 61... Kf8 {[%clk
0:00:05.5]} 62. Ra8+ {[%clk 0:00:13.3]} 62... Ke7 {[%clk 0:00:05]} 63. Ra7+
{[%clk 0:00:14.2]} 63... Kf6 {[%clk 0:00:05.2]} 64. Bh4+ {[%clk 0:00:13.1]}
64... Ng5 {[%clk 0:00:03.6]} 65. Bxg5+ {[%clk 0:00:13.6]} 65... Kg6 {[%clk
0:00:03.5]} 66. Bf4+ {[%clk 0:00:13.9]} 66... Kf6 {[%clk 0:00:03]} 67. Qg5+
{[%clk 0:00:14.4]} 67... Ke6 {[%clk 0:00:03.3]} 68. Re7+ {[%clk 0:00:14]} 68...
Kd5 {[%clk 0:00:03.2]} 69. Qxe5+ {[%clk 0:00:14.1]} 69... Kc6 {[%clk 0:00:01.8]}
70. Qxe2 {[%clk 0:00:13]} 70... Kd5 {[%clk 0:00:02.5]} 71. Qd3+ {[%clk
0:00:12.8]} 71... Kc5 {[%clk 0:00:03]} 72. Rc7+ {[%clk 0:00:12.8]} 72... Kb6
{[%clk 0:00:03.4]} 73. Qb1+ {[%clk 0:00:12.9]} 73... Ka6 {[%clk 0:00:03]} 74.
Qb7+ {[%clk 0:00:13.1]} 74... Ka5 {[%clk 0:00:03.4]} 75. Bd2+ {[%clk 0:00:13.6]}
75... Ka4 {[%clk 0:00:04]} 76. Rc4+ {[%clk 0:00:13.9]} 76... Ka3 {[%clk
0:00:04.1]} 77. Qb4+ {[%clk 0:00:14.4]} 77... Ka2 {[%clk 0:00:04.6]} 78. Rc2+
{[%clk 0:00:14.4]} 1-0

[Event "Early-Titled-Tuesday-Blitz-April-02-2024"]
[Site "Chess.com"]
[Date "2024.04.02"]
[Round "4"]
[White "bazar-wokzal"]
[Black "wild3000"]
[Result "1-0"]
[WhiteElo "2555"]
[BlackElo "2365"]
[TimeControl "180+1"]
[EndTime "8:40:40 PDT"]
[Termination "bazar-wokzal won on time"]

1. e4 {[%clk 0:03:00.9]} 1... c5 {[%clk 0:02:48.7]} 2. c3 {[%clk 0:03:00.6]}
2... e6 {[%clk 0:02:48.1]} 3. d4 {[%clk 0:03:00.4]} 3... d5 {[%clk 0:02:48.5]}
4. e5 {[%clk 0:02:55.4]} 4... Nc6 {[%clk 0:02:48.1]} 5. Nf3 {[%clk 0:02:53.7]}
5... Nge7 {[%clk 0:02:48.1]} 6. Na3 {[%clk 0:02:51.7]} 6... Nf5 {[%clk
0:02:46.9]} 7. Nc2 {[%clk 0:02:51.3]} 7... cxd4 {[%clk 0:02:44.5]} 8. cxd4
{[%clk 0:02:51]} 8... Be7 {[%clk 0:02:17.4]} 9. Bd3 {[%clk 0:02:50.6]} 9... Nb4
{[%clk 0:02:16]} 10. Nxb4 {[%clk 0:02:46.7]} 10... Bxb4+ {[%clk 0:02:15.7]} 11.
Bd2 {[%clk 0:02:47.2]} 11... Qa5 {[%clk 0:02:09.4]} 12. Bxf5 {[%clk 0:02:40.8]}
12... exf5 {[%clk 0:02:10.3]} 13. O-O {[%clk 0:02:40.2]} 13... Bxd2 {[%clk
0:02:08.8]} 14. Nxd2 {[%clk 0:02:39.8]} 14... O-O {[%clk 0:01:59.2]} 15. Nb3
{[%clk 0:02:39.1]} 15... Qd8 {[%clk 0:01:50.7]} 16. Rc1 {[%clk 0:02:38.4]} 16...
Be6 {[%clk 0:01:47.6]} 17. Rc3 {[%clk 0:02:37.1]} 17... b6 {[%clk 0:01:41]} 18.
Qc2 {[%clk 0:02:36.2]} 18... Qh4 {[%clk 0:01:34.8]} 19. Rc1 {[%clk 0:02:09.8]}
19... h6 {[%clk 0:01:33.5]} 20. g3 {[%clk 0:02:04]} 20... Qg4 {[%clk 0:01:23.4]}
21. f3 {[%clk 0:02:00.2]} 21... Qh3 {[%clk 0:01:15]} 22. Nd2 {[%clk 0:01:37.6]}
22... f4 {[%clk 0:01:01.7]} 23. gxf4 {[%clk 0:01:30.2]} 23... Bf5 {[%clk
0:01:01.5]} 24. Qd1 {[%clk 0:01:29.4]} 24... Qh4 {[%clk 0:01:01.2]} 25. Nf1
{[%clk 0:01:18.4]} 25... Qxf4 {[%clk 0:01:00.4]} 26. Qd2 {[%clk 0:01:13.8]}
26... Qxd2 {[%clk 0:00:49.8]} 27. Nxd2 {[%clk 0:01:14]} 27... g5 {[%clk
0:00:43.8]} 28. Nf1 {[%clk 0:01:10.4]} 28... Be6 {[%clk 0:00:38.8]} 29. Ne3
{[%clk 0:01:03.6]} 29... Kg7 {[%clk 0:00:36.8]} 30. Kf2 {[%clk 0:01:02.8]} 30...
Kg6 {[%clk 0:00:35.1]} 31. Kg3 {[%clk 0:01:02.7]} 31... h5 {[%clk 0:00:31.3]}
32. h4 {[%clk 0:01:02.3]} 32... gxh4+ {[%clk 0:00:26.6]} 33. Kxh4 {[%clk
0:01:02.7]} 33... Kh6 {[%clk 0:00:27]} 34. f4 {[%clk 0:01:01.3]} 34... Bg4
{[%clk 0:00:16.4]} 35. Rc6+ {[%clk 0:00:55.7]} 35... Kg7 {[%clk 0:00:15.3]} 36.
Nxg4 {[%clk 0:00:54.8]} 36... hxg4 {[%clk 0:00:16.2]} 37. Kxg4 {[%clk
0:00:55.4]} 37... Rh8 {[%clk 0:00:17.1]} 38. Rg1 {[%clk 0:00:53.9]} 38... Rh2
{[%clk 0:00:15.1]} 39. Kf3+ {[%clk 0:00:45.9]} 39... Kf8 {[%clk 0:00:14.9]} 40.
Rg2 {[%clk 0:00:46.4]} 40... Rh3+ {[%clk 0:00:14.8]} 41. Ke2 {[%clk 0:00:42.5]}
41... Rh4 {[%clk 0:00:13]} 42. Rf2 {[%clk 0:00:42.5]} 42... Rd8 {[%clk
0:00:11.3]} 43. b4 {[%clk 0:00:39.6]} 43... a5 {[%clk 0:00:10.4]} 44. Rxb6
{[%clk 0:00:38.4]} 44... axb4 {[%clk 0:00:10.5]} 45. Rxb4 {[%clk 0:00:38.4]}
45... Rc8 {[%clk 0:00:10.5]} 46. Kd2 {[%clk 0:00:30]} 46... Rh3 {[%clk
0:00:08.2]} 47. Rb5 {[%clk 0:00:28.3]} 47... Ra3 {[%clk 0:00:07.8]} 48. Re2
{[%clk 0:00:15.8]} 48... Rxa2+ {[%clk 0:00:07.3]} 49. Ke3 {[%clk 0:00:16.2]}
49... Ra3+ {[%clk 0:00:07.5]} 50. Kf2 {[%clk 0:00:16.6]} 50... Rc4 {[%clk
0:00:07.6]} 51. Rxd5 {[%clk 0:00:16.1]} 51... Rcc3 {[%clk 0:00:07.1]} 52. Ke1
{[%clk 0:00:11.3]} 52... Rf3 {[%clk 0:00:04.6]} 53. Re4 {[%clk 0:00:06.9]} 53...
Ra1+ {[%clk 0:00:03.8]} 54. Ke2 {[%clk 0:00:07]} 54... Rff1 {[%clk 0:00:04.2]}
55. Rb5 {[%clk 0:00:05.1]} 55... Rae1+ {[%clk 0:00:03.8]} 56. Kd3 {[%clk
0:00:05.5]} 56... Rd1+ {[%clk 0:00:04.1]} 57. Kc4 {[%clk 0:00:04.9]} 57... Ke7
{[%clk 0:00:03.5]} 58. Kd5 {[%clk 0:00:04.7]} 58... Rc1 {[%clk 0:00:03.3]} 59.
Rb7+ {[%clk 0:00:05]} 59... Kf8 {[%clk 0:00:03.6]} 60. Kd6 {[%clk 0:00:04.7]}
60... Rc8 {[%clk 0:00:03.1]} 61. d5 {[%clk 0:00:04.4]} 61... Rfc1 {[%clk
0:00:03]} 62. Reb4 {[%clk 0:00:01.2]} 62... Rd8+ {[%clk 0:00:01.1]} 63. Rd7
{[%clk 0:00:01.9]} 63... Re8 {[%clk 0:00:01.9]} 64. Rbb7 {[%clk 0:00:01.3]}
64... Kg8 {[%clk 0:00:01.9]} 65. Rxf7 {[%clk 0:00:01.9]} 65... Rd8+ {[%clk
0:00:02.7]} 66. Rfd7 {[%clk 0:00:02.4]} 66... Rf8 {[%clk 0:00:02.7]} 67. Rg7+
{[%clk 0:00:02.6]} 1-0